Cogmind - Beta 16 --- EXPLORER MODE // 2026.01.27 @ 09:48:42 Player: K.K.Y. Result: Destroyed by D-53 Grenadier with Mini Grenade Launcher Performance ------------- Evolutions (0) 0 Regions Visited (2) 400 Robots Destroyed (28) 140 Value Destroyed (778) 778 Prototype IDs (0) 0 Alien Tech Used (0) 0 Bonus (-28) -28 TOTAL SCORE: 1290 Bonus ------- Friendly Fire -28 Cogmind --------- Core Integrity 0/250 Matter 290/300 Energy 77/100 System Corruption 0% Temperature Warm (183) Movement Core (500) Ox9 Location -10/Mines Parts ------- > --- POWER (1) -------- (None) > --- PROPULSION (2) --- (None) > --- UTILITY (3) ------ Large Storage Unit Structural Scanner Sensor Array > --- WEAPON (2) ------- Beam Rifle Beam Rifle > --- INVENTORY (15) --- Light Nuclear Core Improved Heat Sink High-capacity Storage Unit Huge Storage Unit Improved Terrain Scanner Subdweller Beam Cannon Mining Laser Heavy Hammer Peak State ------------ > --- POWER ------------ Light Nuclear Core > --- PROPULSION ------- Light Treads Light Treads > --- UTILITY ---------- Improved Heat Sink Large Storage Unit > --- WEAPON ----------- Particle Gun Particle Gun > --- INVENTORY -------- Light Nuclear Core Light Nuclear Core Structural Scanner Sensor Array Improved Terrain Scanner Mining Laser [Rating: 14] Favorites ----------- Power Light Nuclear Core Engine Light Ion Engine Power Core Light Nuclear Core Propulsion Light Treads Treads Light Treads Utility Large Storage Unit Device Sensor Array Storage Large Storage Unit Weapon Beam Rifle Energy Gun Beam Rifle Ballistic Gun Assault Rifle Special Weapon Mining Laser Build | -11 -10 -10 ------- Run | Yrd Mat Min Slots Evolved 1 | . 1 . Power . | . . . Propulsion . | . . . Utility 1 | . 1 . Weapon . | . . . Parts Attached 21 | 6 13 2 Power 3 | 1 2 . Engine 1 | 1 . . Core 2 | . 2 . Reactor . | . . . Propulsion 2 | 2 . . Treads 2 | 2 . . Leg . | . . . Wheel . | . . . Hover . | . . . Flight . | . . . Utility 5 | 1 4 . Device 3 | . 3 . Storage 2 | 1 1 . Processor . | . . . Hackware . | . . . Protection . | . . . Artifact . | . . . Weapon 11 | 2 7 2 Energy Gun 8 | . 6 2 Energy Cannon . | . . . Ballistic Gun 2 | 2 . . Ballistic Cannon . | . . . Launcher . | . . . Special Weapon 1 | . 1 . Impact Weapon . | . . . Slashing Weapon . | . . . Piercing Weapon . | . . . Special Melee Weapon . | . . . Unidentified Prototypes . | . . . Parts Lost 9 | . 5 4 Power 3 | . 2 1 Propulsion 2 | . 1 1 Utility 1 | . 1 . Weapon 3 | . 1 2 Highest Loss Streak 4 | . 4 3 To Critical Strikes . | . . . Average Backups 7 | 1 7 9 Power 1 | . 1 1 Propulsion . | . . . Utility 2 | . 2 3 Weapon 3 | . 3 4 Tool/Special . | . . . Unused Backups 7 | . . 7 Power 1 | . . 1 Propulsion . | . . . Utility 4 | . . 4 Weapon 2 | . . 2 Tool/Special . | . . . Average Slot Usage (%) 69 | . 68 75 Engine 1 | . 1 . Core 5 | . 4 11 Treads 14 | . 15 1 Device 10 | . 8 25 Storage 12 | . 12 12 Energy Gun 23 | . 23 25 Peak Build Rating 14 | 6 14 12 Average Rating 9 | 4 9 11 On Entrance 6 | . 6 12 Avg Prop Armor Cover (%) . | . . . Naked Turns . | . . . Heaviest Build 33 | 16 33 33 Greatest Support 40 | 40 40 20 Greatest Overweight (x) 10 | . 6 10 Average Overweight (x) 1 | . . 8 Largest Inventory Capacity 15 | 10 15 15 Average Capacity 14 | 8 14 15 Most Carried 15 | 5 15 10 Average Carried 7 | 1 7 9 Final Capacity 15 | 10 15 15 Final Carried 9 | 2 9 8 Class Distribution -------------------- 100% | Hacker-Mutant Dominant Class ---------------- Hacker-Mutant | -10/Materials Hacker-Mutant | -10/Mines Resources | -11 -10 -10 ----------- Run | Yrd Mat Min Matter Collected 460 | 248 212 . Remotely . | . . . Salvage Created 927 | 100 726 101 Parts 63 | 9 49 5 Haulers Intercepted 2 | . 2 . Recyclers Shooed 1 | 1 . . Parts Field Recycled . | . . . Retrieved Matter . | . . . Parts Self-Destructed . | . . . Prevented . | . . . Parts Restored . | . . . Kills | -11 -10 -10 ------- Run | Yrd Mat Min Combat Hostiles Destroyed 18 | . 15 3 Guns 17 | . 14 3 AOE 1 | . 1 . Classes Destroyed 9 | 2 6 1 Builder 2 | . 2 . Tunneler 2 | 2 . . Hauler 2 | . 2 . Recycler 1 | 1 . . Watcher 3 | . 3 . Swarmer 2 | . 2 . Grunt 12 | . 10 2 Demolisher 1 | . . 1 Subdweller 3 | . 3 . Best Kill Streak 4 | 2 4 2 Combat Bots Only 3 | . 3 2 Max Kills in Single Turn 2 | 1 1 2 Gunslinging 1 | . . 1 Exploded 1 | . 1 . Melee . | . . . Uniques/NPCs Destroyed . | . . . Combat | -11 -10 -10 -------- Run | Yrd Mat Min Hostile Shots Fired 92 | . 77 15 Missed 24 | . 23 1 Hits 68 | . 54 14 Projectile 68 | . 54 14 AOE 12 | . . 12 Damage Taken 938 | . 616 322 Core 251 | . 107 144 Absorbed by Shields . | . . . Ignored by Resistances 571 | . 374 197 Core Remaining (%) 100 | 100 . . Volleys Fired 85 | 10 67 8 Largest 2 | 2 2 2 Hottest 165 | 40 165 112 Shots Fired 168 | 20 132 16 Gun 167 | 20 131 16 Cannon . | . . . Launcher . | . . . Special 1 | . 1 . Kinetic 20 | 20 . . Thermal 148 | . 132 16 Explosive . | . . . Electromagnetic . | . . . Robot Hit Streak 38 | 12 38 20 Robot Miss Streak 2 | 1 2 . Penetration Max . | . . . Secondary Targets 6 | . 4 2 Max Gunslinging Chain 1 | . 1 1 Shots Hit Robots 144 | 16 112 16 Core Hits 52 | 5 40 7 Critical Kills . | . . . Critical Parts Destroyed . | . . . Critical Strikes 8 | . 6 2 Burn 8 | . 6 2 Melee Attacks . | . . . Impact . | . . . Slashing . | . . . Piercing . | . . . Sneak Attacks . | . . . Combat Hostiles . | . . . Follow-up Attacks . | . . . Damage Inflicted 2102 | 165 1703 234 Guns 1936 | 165 1537 234 Cannons . | . . . Explosions 166 | . 166 . Melee . | . . . Ramming . | . . . Kinetic 165 | 165 . . Thermal 1771 | . 1537 234 Explosive 166 | . 166 . Electromagnetic . | . . . Impact . | . . . Slashing . | . . . Piercing . | . . . Highest Corruption . | . . . Average Corruption . | . . . Corruption Purged . | . . . Corruption Blocked . | . . . Overload Shots . | . . . Overflow Damage . | . . . Projectiles . | . . . Explosions . | . . . Melee . | . . . Knockbacks . | . . . Impact . | . . . Kinetic . | . . . Secondary . | . . . Self-Inflicted Damage 135 | . 135 . Shots 2 | . 2 . Rammed . | . . . Targets Rammed . | . . . Kicked . | . . . Crushed . | . . . Highest Temperature 246 | . 246 183 Average Temperature 83 | . 83 81 Received Heat Transfer 342 | . 324 18 Effects 1 | . 1 . Energy Bleed 1 | . 1 . Siege Activations . | . . . Martial Activations . | . . . Shielding Activations . | . . . Robots Disrupted . | . . . Combat Hostiles . | . . . Robots Corrupted . | . . . Combat Hostiles . | . . . Parts Fried . | . . . Impact Corruptions . | . . . Robots Melted . | . . . Combat Hostiles . | . . . Parts Melted 10 | . 10 . Heat Transferred 5183 | . 4443 740 Parts Sabotaged . | . . . Parts Stolen . | . . . Parts Stripped . | . . . Power Chain Reactions . | . . . Alert | -11 -10 -10 ------- Run | Yrd Mat Min Maximum Alert Level . | . . . Low Security (%) 100 | 100 100 100 Level 1 . | . . . Level 2 . | . . . Level 3 . | . . . Level 4 . | . . . Level 5 . | . . . High Security . | . . . Max Security . | . . . Peak Influence 118 | 10 118 50 Initial . | . . . Average 10 | 1 11 7 Influence Increases 511 | 15 416 80 Destroy 0b10 Robot/C 300 | . 240 60 Destroy 0b10 Robot/NC 50 | 15 35 . Destroy Leader 80 | . 60 20 Successful Hack 3 | . 3 . Disable Machine 12 | . 12 . Destroy Structure 36 | . 36 . Lose Combat Pursuer 30 | . 30 . Influence Decreases 501 | 15 416 70 Time Decay 447 | 15 382 50 Lost Part 54 | . 34 20 Squads Dispatched . | . . . Investigation . | . . . Extermination . | . . . Reinforcement . | . . . Assault . | . . . Garrison . | . . . Intercept . | . . . Searches Triggered . | . . . Construction Impeded . | . . . Haulers Reinforced . | . . . Active Scanning Responses . | . . . Cargo Convoy Interrupts . | . . . Stealth | -11 -10 -10 --------- Run | Yrd Mat Min Distress Signals 2 | . 2 . Communications Jammed . | . . . Distress Signals . | . . . Times Spotted 28 | . 24 4 Peak Tracking Total 4 | . 4 2 Tactical Retreats 1 | . 1 . Traps | -11 -10 -10 ------- Run | Yrd Mat Min Traps Triggered 3 | . 3 . Indirectly . | . . . Trap Hack Attempts . | . . . Triggered . | . . . Disarmed 1 | . 1 . Reprogrammed . | . . . Reused . | . . . Traps Extracted . | . . . Installed . | . . . Triggered . | . . . Machines | -11 -10 -10 ---------- Run | Yrd Mat Min Machines Disabled 3 | . 3 . Max in Single Turn 2 | . 2 . Machines Repaired . | . . . Machines Dismantled . | . . . Machines Sabotaged . | . . . Overloaded Fab Kills . | . . . Hacking | -11 -10 -10 --------- Run | Yrd Mat Min Machines Accessed 10 | . 10 . Terminals 8 | . 8 . Fabricators . | . . . Repair Stations . | . . . Recycling Units 2 | . 2 . Scanalyzers . | . . . Garrison Access . | . . . Total Hacks 16 | . 16 . Successful 11 | . 11 . Failed 5 | . 5 . Catastrophic . | . . . Database Lockouts . | . . . Manual 9 | . 9 . Terminals 11 | . 11 . Fabricators . | . . . Repair Stations . | . . . Recycling Units 5 | . 5 . Scanalyzers . | . . . Garrison Access . | . . . Terminal Hacks 2 | . 2 . Disarm Traps 2 | . 2 . Fabricator Hacks . | . . . Repair Station Hacks . | . . . Recycling Unit Hacks 1 | . 1 . Retrieve Components 1 | . 1 . Scanalyzer . | . . . Garrison Access Hacks . | . . . Unauthorized Hacks 8 | . 8 . Terminals 8 | . 8 . Botnet 8 | . 8 . Fabricators . | . . . Repair Stations . | . . . Recycling Units . | . . . Scanalyzers . | . . . Garrison Access . | . . . Data Cores Recovered . | . . . Used . | . . . Hacking Detections 6 | . 6 . Full Trace Events 1 | . 1 . Feedback Events . | . . . Feedback Blocked . | . . . Robot Schematics Acquired . | . . . Robots Built . | . . . Authchips . | . . . Time . | . . . Total Robot Build Rating . | . . . Part Schematics Acquired . | . . . Parts Built . | . . . Authchips . | . . . Time . | . . . Total Part Build Rating . | . . . Part Studies Acquired . | . . . Parts Repaired . | . . . Time . | . . . Parts Recycled . | . . . Recycled Matter . | . . . Retrieved Matter . | . . . Retrieved Components 5 | . 5 . Parts Scanalyzed . | . . . Part Schematics Acquired . | . . . Parts Damaged . | . . . Bothacking | -11 -10 -10 ------------ Run | Yrd Mat Min Used RIF Installer . | . . . Robots Hacked . | . . . Non-combat . | . . . Combat . | . . . Robot Hacks Applied . | . . . Relay Couplers Released . | . . . Fabnet Peak Effective % . | . . . Robots Rewired . | . . . Allies Hacked . | . . . Hacks Repelled . | . . . Allies | -11 -10 -10 -------- Run | Yrd Mat Min Total Allies . | . . . Largest Group . | . . . Highest-Rated Group . | . . . Highest-Rated Ally . | . . . Total Orders . | . . . Ally Attacks . | . . . Total Damage . | . . . Kills . | . . . Allies Corrupted . | . . . Allies Melted . | . . . Intel | -11 -10 -10 ------- Run | Yrd Mat Min Active Infowar (turns) 915 | . 657 258 Sensors 915 | . 657 258 Structural 914 | . 656 258 Robot Analysis Total . | . . . Derelict Logs Recovered . | . . . Drone Launches . | . . . Drone Recoveries . | . . . Exploration | -11 -10 -10 ------------- Run | Yrd Mat Min Turns Passed 2679 | 99 2322 258 Spaces Moved 1050 | 54 952 44 Core 67 | 25 4 38 Treads 983 | 29 948 6 Legs . | . . . Wheels . | . . . Hover . | . . . Flight . | . . . Fastest Speed 50 | 50 160 240 Average Speed 222 | 109 215 507 Slowest Speed 550 | 160 350 550 Overloaded Moves . | . . . Propulsion Burnouts . | . . . Robots Hopped . | . . . Potential Cave-ins . | . . . Cave-ins Triggered . | . . . Exploration Rate (%) 40 | 5 100 16 Regions Visited 2 Branch Regions 1 Pre-discovered Areas . | . . . Known Exits Taken 2 | 1 1 . Unknown Exits Taken . | . . . Scrap Searched . | . . . Spaces Dug . | . . . Terrain Destroyed 38 | . 38 . Melee . | . . . Projectile . | . . . AOE 38 | . 38 . Terrain Rammed . | . . . Walls Destroyed . | . . . Machines Disabled . | . . . Actions | -11 -10 -10 --------- Run | Yrd Mat Min Total 1234 | 76 1094 64 Wait 37 | . 28 9 Move 1048 | 53 951 44 Hop . | . . . Pick Up 30 | 7 22 1 Fast Attach 1 | 1 . . Attach 19 | 5 12 2 Detach 3 | . 3 . Swap 5 | . 5 . Drop 6 | . 6 . Fire 85 | 10 67 8 Melee . | . . . Ram . | . . . Kick . | . . . Crush . | . . . Escape Stasis . | . . . Rewire . | . . . Trap . | . . . Miscellaneous . | . . . Route ------- -11/Scrapyard -10/Materials (discovered 5 exits: *Mat x3 / *Min / *Sub) -10/Mines (discovered 1 exit: *Mat) History --------- Turn | Location | Event 7 | -11/Scrapyard | Identified exit to Materials 7 | -11/Scrapyard | Discovered exit to Materials (range 15) 100 | -11/Scrapyard | Entered Materials 100 | -10/Materials | Evolved 1 slot: Utility x1 277 | -10/Materials | Identified exit to Subcaves 277 | -10/Materials | Discovered exit to Subcaves (range 7) 301 | -10/Materials | Identified exit to Materials 301 | -10/Materials | Discovered exit to Materials (range 10) 316 | -10/Materials | Build established: Hacker-Mutant 600 | -10/Materials | Derelicts attacked the area 687 | -10/Materials | Discovered exit to Materials (range 10) 820 | -10/Materials | Lost 4 parts (1p1n1u1w) 1227 | -10/Materials | Identified exit to Mines 1227 | -10/Materials | Discovered exit to Mines (range 5) 1701 | -10/Materials | Discovered exit to Materials (range 11) 2422 | -10/Materials | Entered Mines 2618 | -10/Mines | Discovered exit to Materials (range 8) 2658 | -10/Mines | Received a Rocket Launcher from a helpful Derelict 2660 | -10/Mines | Assembled infested the area 2669 | -10/Mines | Core integrity fell below 50% 2675 | -10/Mines | Core integrity fell below 20% 2680 | -10/Mines | Destroyed by D-53 Grenadier with Mini Grenade Launcher Last Messages --------------- launcher? I know I would if I were you, so I'm going to lend you mine." 02658_ Z6-FP2(g) slips back into the shadows. 02660_ ALERT: Infestation in the mines, dispatching Demolisher response squad. 02665_ C-45 Heavy ARC bursts open, deploying its payload. 02665_ D-53 Grenadier unfolds itself. 02665_ U-05 Engineer lays Concrete. 02668_ U-05 Engineer destroyed. 02670_ The unstable cave ceiling collapses. 02670_ Beam Rifle destroyed. 02672_ D-53 Grenadier destroyed. 02672_ Switching to secondary target: D-53 Grenadier. 02672_ Beam Rifle destroyed. 02676_ D-53 Grenadier suffers critical hit (Burn). 02676_ Lgt. Nuclear Core destroyed. 02678_ The unstable cave ceiling collapses. Map ----- +----------------------------------------------------+ | ??????###### ##########?????????????????????????? | | ??????### ## ######????????????????????????? | | ??????## ###????????????????????????? | | ??????## ##????????????????????????? | | ###???## ##??###????????????????????????? | | ######### #####?????????????????????????????? | | # ####### ## ######????????????????????????????? | | ######### ## ###????????????????????????????? | | ###### % ##????????????????????????????? | | # #### % ##????????####????????????????? | | ## """ ### ### ###??????? ###????????????????? | | ## """ ### ######???? ##????????????????? | | ## """ ######## ######??? ##????????????????? | | # ########## ### ? ##????????????????? | | # ####????#### ###? ##????????????????? | | ## #####??????### ## ##????????????????? | | #######?????????## ## ##????????????????? | | #####???????????## ## < # ????????????????? | | ????????????????### ## ????????????????? | | ????????????????#### ###?????????????????? | | ?????????????????#### ######?????????????????? | | ??????????????????##### ####?????????????????? | | ???????????????????### % ###?????????????????? | | ???????????###????### d ## ##??????????????? | | ???????????## ## ## ##??????????????? | | ?????????? @ ##??????????????? | | ?????????? * # #####??????????????? | | ????????????## # #####??????????????? | | ????????????### ###?????????????????? | | ????????????### ####?????????????????? | | ?????????????## ## #######??????????????????? | | ?????????????## ###########???????????????????? | | ?????????????### ######????????????????????????? | | ?????????????#### ???????????????????????????????? | | ??????????????### ???????????????????????????????? | | ???????????????## ???????????????????????????????? | | ?????????????????????????????????????????????????? | | ?????????????????????????????????????????????????? | | ?????????????????????????????????????????????????? | | ?????????????????????????????????????????????????? | | ?????????????????????????????????????????????????? | | ?????????????????????????????????????????????????? | | ?????????????????????????????????????????????????? | | ?????????????????????????????????????????????????? | | ?????????????????????????????????????????????????? | | ?????????????????????????????????????????????????? | | ?????????????????????????????????????????????????? | | ?????????????????????????????????????????????????? | | ?????????????????????????????????????????????????? | | ?????????????????????????????????????????????????? | +----------------------------------------------------+ Best States ------------- Heat Dissipation 39 Energy Generation 14 Energy Capacity 160 Matter Stores 300 Matter Capacity 300 Sight Range 16 Robot Scan Range 14 Terrain Scan Density 10 Resistance: KI 35 Resistance: TH 35 Resistance: EX 35 Resistance: EM 35 Resistance: I 35 Resistance: S 35 Resistance: P 35 Evasion (%) 50 Recoil Reduction 2 Offensive Hacking 20 Item Schematics ----------------- None Robot Schematics ------------------ None Fabricated ------------ Nothing Repaired ---------- Nothing Studied --------- None Alien Tech Used ----------------- None Achievements -------------- None Challenges ------------ None Game ------ Seed MetafieldLaunchStatue Manual? 0 Play Time 00:09:46 Cumulative 312.3 hours Start 2026.01.27 @ 09:39:42 End 2026.01.27 @ 09:48:42 Sessions 1 Manual Loads 0 Difficulty Explorer Special Mode None Game No. 489 Rogue 0 Adventurer 0 Explorer 489 Win Type - Total 0 Types 0/0/0/0/0/0/0/0/0/0 Lore% 77 Gallery% 70 Achievement% 56 Wizard Run 0 Options --------- Layout 1 ASCII 0 Keyboard 0 Movement Mouse Keybinds 1 Fullscreen 1 Font 24/Smallcaps Map View 50x35 Zoom Use 0% Tactical HUD 1 Map Filters NONE Filters NONE Steam 1 RUN: 89d97be5-167d-4467-bfdd-bd06c6c43e76